bitfinex/quotes_BTCUSD_20250628
["timestamp","ask_amount","ask_price","bid_price","bid_amount"]
[1751101206850,0.19547611,107430.0,107420.0,0.53622249]
[1751101215215,0.17047611,107430.0,107420.0,0.53622249]
[1751101219349,0.00930812,107430.0,107420.0,0.54553122]
[1751101221130,0.0186165,107430.0,107420.0,0.54553122]
[1751101227920,0.0186165,107430.0,107420.0,0.53622249]
[1751101228116,0.0186165,107430.0,107420.0,0.54553131]
[1751101231845,0.20478423,107430.0,107420.0,0.53622249]
[1751101242567,0.20478423,107430.0,107420.0,0.52691359]
[1751101244184,0.19547611,107430.0,107420.0,0.50829552]
[1751101244380,0.19547611,107430.0,107420.0,0.5176046]
[1751101244984,0.19547611,107430.0,107420.0,0.52691359]
[1751101248118,0.19547611,107430.0,107420.0,0.5176046]
[1751101253018,0.19542958,107430.0,107420.0,0.5176046]
[1751101254402,0.18616773,107430.0,107420.0,0.19674247]
[1751101254614,0.20126773,107430.0,107420.0,0.50829561]
[1751101254818,0.20126773,107430.0,107420.0,0.51760477]
[1751101255945,0.20126773,107430.0,107420.0,0.50829561]
[1751101256528,0.20126773,107430.0,107420.0,0.51760477]
[1751101260088,0.20126773,107430.0,107420.0,0.20605163]
[1751101260317,0.20126773,107430.0,107420.0,0.51760477]
[1751101260556,0.21626773,107430.0,107420.0,0.50829561]
[1751101261535,0.21626773,107430.0,107420.0,0.51760477]
[1751101261757,0.21626773,107430.0,107420.0,0.00124816]
[1751101261969,0.21626773,107430.0,107420.0,0.3128013]
[1751101272838,0.36574773,107430.0,107420.0,0.3128013]
[1751101285674,0.36574773,107430.0,107420.0,0.00124816]
[1751101285882,0.36574773,107430.0,107420.0,0.3128013]
[1751101294993,0.36574773,107430.0,107420.0,0.00124816]
[1751101295695,0.36574773,107430.0,107420.0,0.3128013]
[1751101296280,0.35074773,107430.0,107420.0,0.3128013]
[1751101298719,0.66230087,107430.0,107420.0,0.00124816]
[1751101300350,0.35074773,107430.0,107420.0,0.00124816]
[1751101301770,0.66230087,107430.0,107420.0,0.00124816]
[1751101301979,0.33560773,107430.0,107420.0,0.3128013]
[1751101307817,0.33560773,107430.0,107420.0,0.00124816]
[1751101310921,0.33560773,107430.0,107420.0,0.3128013]
[1751101314025,0.33560773,107430.0,107420.0,0.00124816]
[1751101314228,0.33560773,107430.0,107420.0,0.3128013]
[1751101314443,0.33449269,107430.0,107420.0,0.3128013]
[1751101314786,0.33449269,107430.0,107420.0,0.00124816]
[1751101315189,0.33449269,107430.0,107420.0,0.3128013]
[1751101315816,0.33449269,107430.0,107420.0,0.00124816]
[1751101323148,0.64604583,107430.0,107420.0,0.00124816]
[1751101324187,0.66114583,107430.0,107420.0,0.00124816]
[1751101331609,0.67684583,107430.0,107420.0,0.00124816]
[1751101331852,0.34959269,107430.0,107420.0,0.00124816]
[1751101350061,0.67624583,107430.0,107420.0,0.00124816]
[1751101351408,1.01624583,107430.0,107420.0,0.00124816]
[1751101365941,1.10900591,107430.0,107420.0,0.00124816]
[1751101383617,0.78235277,107430.0,107420.0,0.00124816]
[1751101383862,1.07880591,107430.0,107420.0,0.00124816]
[1751101384091,0.83660583,107430.0,107420.0,0.00124816]
[1751101384306,0.98600583,107430.0,107420.0,0.03334816]
[1751101386069,0.98600583,107430.0,107420.0,0.00124816]
[1751101390567,1.01730583,107430.0,107420.0,0.00124816]
[1751101391397,0.70575269,107430.0,107420.0,0.00124816]
[1751101391650,1.01730583,107430.0,107420.0,0.00124816]
[1751101391852,1.00150583,107430.0,107420.0,0.00124816]
[1751101393216,1.00146582,107430.0,107420.0,0.00124816]
[1751101408661,0.68991268,107430.0,107420.0,0.00124816]
[1751101408868,1.00146582,107430.0,107420.0,0.00124816]
[1751101412051,0.68991268,107430.0,107420.0,0.00124816]
[1751101412267,1.00146582,107430.0,107420.0,0.00124816]
[1751101412773,0.98596582,107430.0,107420.0,0.00124816]
[1751101416899,1.00216582,107430.0,107420.0,0.00124816]
[1751101419177,1.01726582,107430.0,107420.0,0.00124816]
[1751101433959,0.70571268,107430.0,107420.0,0.00124816]
[1751101434162,1.01726582,107430.0,107420.0,0.00124816]
[1751101435159,1.00216582,107430.0,107420.0,0.00124816]
[1751101442340,1.01756582,107430.0,107420.0,0.00124816]
[1751101451861,1.00216582,107430.0,107420.0,0.00124816]
[1751101471031,0.67441268,107430.0,107420.0,0.00124816]
[1751101471263,0.98596582,107430.0,107420.0,0.00124816]
[1751101478007,0.67441268,107430.0,107420.0,0.00124816]
[1751101478204,0.98596582,107430.0,107420.0,0.00124816]
[1751101483930,0.67441268,107430.0,107420.0,0.00124816]
[1751101484127,0.98596582,107430.0,107420.0,0.00124816]
[1751101496253,0.67441268,107430.0,107420.0,0.00124816]
[1751101496455,0.98596582,107430.0,107420.0,0.00124816]
[1751101524911,1.00166582,107430.0,107420.0,0.00124816]
[1751101532328,0.69011268,107430.0,107420.0,0.00124816]
[1751101532685,1.00166582,107430.0,107420.0,0.00124816]
[1751101537806,1.01796582,107430.0,107420.0,0.00124816]
[1751101543993,1.00166582,107430.0,107420.0,0.00124816]
[1751101572950,1.01736582,107430.0,107420.0,0.00124816]
[1751101574485,1.1101259,107430.0,107420.0,0.00124816]
[1751101575733,1.01736582,107430.0,107420.0,0.00124816]
[1751101576364,1.1101259,107430.0,107420.0,0.00124816]
[1751101576569,1.42167904,107430.0,107420.0,0.00124816]
[1751101576997,1.1101259,107430.0,107420.0,0.00124816]
[1751101577657,1.42167904,107430.0,107420.0,0.00124816]
[1751101578711,1.1101259,107430.0,107420.0,0.00124816]
[1751101584209,1.42167904,107430.0,107420.0,0.00124816]
[1751101585827,1.45955904,107430.0,107420.0,0.00124816]
[1751101589303,1.94465904,107430.0,107420.0,0.00124816]
[1751101590906,1.32155276,107430.0,107420.0,0.00124816]
[1751101591123,1.94465904,107430.0,107420.0,0.00124816]
[1751101593601,2.10195997,107430.0,107420.0,0.00124816]
[1751101593954,2.12991997,107430.0,107420.0,0.00124816]
[1751101600193,2.03715989,107430.0,107420.0,0.00124816]
[1751101601525,0.19551226,107410.0,107400.0,4.7432394]
[1751101601734,0.74918548,107410.0,107400.0,4.77639813]
[1751101602379,0.75849542,107410.0,107400.0,4.77639813]
[1751101603749,0.7679496,107410.0,107400.0,4.77639813]
[1751101606302,0.7679496,107410.0,107400.0,4.76029813]
[1751101606520,0.7679496,107410.0,107400.0,4.74369813]
[1751101622685,0.7994496,107410.0,107400.0,4.73967916]
[1751101631300,0.7679496,107410.0,107400.0,4.73967916]
[1751101631930,0.7842496,107410.0,107400.0,4.73967916]
[1751101632134,0.7994496,107410.0,107400.0,4.73967916]
[1751101633550,1.93610274,107410.0,107400.0,4.73967916]
[1751101636223,1.93810274,107410.0,107400.0,4.73967916]
[1751101637153,1.96706774,107410.0,107400.0,4.73967916]
[1751101637340,2.03160859,107410.0,107400.0,4.73967916]
[1751101638475,1.54650859,107410.0,107400.0,4.73967916]
[1751101638673,1.56877227,107410.0,107400.0,4.73967916]
[1751101638895,1.66153235,107410.0,107400.0,4.73967916]
[1751101639316,1.63926867,107410.0,107400.0,4.73967916]
[1751101639951,1.66152825,107410.0,107400.0,4.73967916]
[1751101640707,7.21152825,107410.0,107400.0,4.73967916]
[1751101641069,7.20207407,107410.0,107400.0,4.73967916]
[1751101641290,7.35207407,107410.0,107400.0,4.73967916]
[1751101641507,7.66362721,107410.0,107400.0,4.73967916]
[1751101641717,7.35207407,107410.0,107400.0,4.73967916]
[1751101644015,7.10995399,107410.0,107400.0,4.73967916]
[1751101644225,1.72497441,107410.0,107400.0,4.73967916]
[1751101645289,1.73425787,107410.0,107400.0,4.73967916]
[1751101645899,1.73433787,107410.0,107400.0,4.73967916]
[1751101657398,1.74086007,107410.0,107400.0,4.73967916]
[1751101657569,1.83361978,107410.0,107400.0,4.73967916]
[1751101658178,1.85586754,107410.0,107400.0,4.73967916]
[1751101671577,1.76310746,107410.0,107400.0,4.73967916]
[1751101678730,7.31310746,107410.0,107400.0,4.73967916]
[1751101678917,7.31310746,107410.0,107400.0,4.73906659]
[1751101679762,1.76310746,107410.0,107400.0,4.73906659]
[1751101679973,7.31310746,107410.0,107400.0,4.73906659]
[1751101680608,7.39925092,107410.0,107400.0,4.73906659]
[1751101680820,7.31310746,107410.0,107400.0,4.73906659]
[1751101683257,7.34103255,107410.0,107400.0,4.73906659]
[1751101683916,7.65258569,107410.0,107400.0,4.73906659]
[1751101685068,7.65058569,107410.0,107400.0,4.73906659]
[1751101685279,7.65358569,107410.0,107400.0,4.73906659]
[1751101685683,7.74634577,107410.0,107400.0,4.73906659]
[1751101685974,7.74534577,107410.0,107400.0,4.73906659]
[1751101686216,7.74834577,107410.0,107400.0,4.73906659]
[1751101687711,7.43679263,107410.0,107400.0,4.73906659]
[1751101688747,7.74834577,107410.0,107400.0,4.73906659]
[1751101689642,7.43679263,107410.0,107400.0,4.73906659]
[1751101691573,7.74834577,107410.0,107400.0,4.73906659]
[1751101692656,2.19834577,107410.0,107400.0,4.73906659]
[1751101692869,7.74834577,107410.0,107400.0,4.73906659]
[1751101695518,7.43679263,107410.0,107400.0,4.73906659]
[1751101697326,1.88679263,107410.0,107400.0,4.73906659]
[1751101697539,7.43679263,107410.0,107400.0,4.73906659]
[1751101697715,7.74834577,107410.0,107400.0,4.73906659]
[1751101697937,7.74834577,107410.0,107400.0,4.69689659]
[1751101698177,7.74834577,107410.0,107400.0,4.68457659]
[1751101698376,7.74825218,107410.0,107400.0,4.65910659]
[1751101698514,7.74825218,107410.0,107400.0,4.65384659]
[1751101698717,7.74825218,107410.0,107400.0,4.64456659]
[1751101698912,7.74825218,107410.0,107400.0,4.6341666]
[1751101699122,7.74825218,107410.0,107400.0,4.6049666]
[1751101699296,7.74825218,107410.0,107400.0,4.5803166]
[1751101699660,7.72032709,107410.0,107400.0,4.5803166]
[1751101700234,7.72032709,107410.0,107400.0,4.5653166]
[1751101701405,7.74825218,107410.0,107400.0,4.5653166]
[1751101702948,7.72032709,107410.0,107400.0,1.89638002]
[1751101703176,7.72032709,107410.0,107400.0,1.88840003]
[1751101703516,7.40877395,107410.0,107400.0,1.88840003]
[1751101703709,6.66148759,107410.0,107400.0,1.88840003]
[1751101703937,7.28459387,107410.0,107400.0,1.88840003]
[1751101709333,7.09715387,107410.0,107400.0,1.88840003]
[1751101709542,7.28463387,107410.0,107400.0,1.88840003]
[1751101710162,7.30073387,107410.0,107400.0,1.88840003]
[1751101710401,7.39349395,107410.0,107400.0,1.88840003]
[1751101710790,7.37739395,107410.0,107400.0,1.88840003]
[1751101711006,1.82739395,107410.0,107400.0,1.88840003]
[1751101711214,1.84349395,107410.0,107400.0,1.88840003]
[1751101711416,7.39349395,107410.0,107400.0,1.88840003]
[1751101713977,7.42141904,107410.0,107400.0,1.88840003]
[1751101718226,7.73297218,107410.0,107400.0,1.88840003]
[1751101718437,7.76668543,107410.0,107400.0,1.88840003]
[1751101721234,7.76669313,107410.0,107400.0,1.88840003]
[1751101724659,7.73876804,107410.0,107400.0,1.86020003]
[1751101725068,7.76669313,107410.0,107400.0,1.86020003]
[1751101725202,7.73876804,107410.0,107400.0,1.83020003]
[1751101725397,7.73876804,107410.0,107400.0,1.79294003]
[1751101725630,7.73876804,107410.0,107400.0,1.77504003]
[1751101725807,7.73876804,107410.0,107400.0,1.76398003]
[1751101726013,7.73876804,107410.0,107400.0,1.74186003]
[1751101726263,7.73876804,107410.0,107400.0,1.70897003]
[1751101726492,7.73876804,107410.0,107400.0,1.67882003]
[1751101726701,7.73876804,107410.0,107400.0,1.64095003]
[1751101726906,7.73876804,107410.0,107400.0,1.59438482]
[1751101727064,7.73876804,107410.0,107400.0,1.57743482]
[1751101727297,7.73876804,107410.0,107400.0,1.55083482]
[1751101727484,7.73876804,107410.0,107400.0,1.52862482]
[1751101727661,7.73876804,107410.0,107400.0,1.52130482]
[1751101728241,7.83680804,107410.0,107400.0,1.52130482]
[1751101728435,7.73876804,107410.0,107400.0,1.52130482]
[1751101732096,7.73876804,107410.0,107400.0,1.50630482]
[1751101732342,7.76669313,107410.0,107400.0,1.50630482]
[1751101732762,7.76669313,107410.0,107400.0,1.49116483]
[1751101732975,7.76669313,107410.0,107400.0,1.47996483]
[1751101733851,7.76669313,107410.0,107400.0,1.47206483]
[1751101734087,7.79523631,107410.0,107400.0,1.46420483]
[1751101734510,7.79523631,107410.0,107400.0,1.45025483]
[1751101734645,7.79523631,107410.0,107400.0,1.44254483]
[1751101734858,7.79523631,107410.0,107400.0,1.43571484]
[1751101735085,7.79523631,107410.0,107400.0,1.43076484]
[1751101735799,7.79523631,107410.0,107400.0,1.42034484]
[1751101736100,8.10678945,107410.0,107400.0,0.84437516]
[1751101736280,8.77989573,107410.0,107400.0,0.65091382]
[1751101736483,8.77989573,107410.0,107400.0,0.59503369]
[1751101736681,6.13554875,107390.0,107380.0,0.0028]
[1751101736885,7.10949971,107390.0,107380.0,0.0028458]
[1751101737153,7.10949971,107390.0,107380.0,0.0338458]
[1751101737355,7.13747271,107390.0,107380.0,0.0338458]
[1751101737778,7.13745542,107390.0,107380.0,0.0338458]
[1751101737990,7.13945542,107390.0,107380.0,0.0338458]
[1751101738167,7.2322155,107390.0,107380.0,0.0338458]
[1751101739785,7.13175606,107390.0,107380.0,0.0338458]
[1751101743162,7.13175606,107390.0,107380.0,0.0186458]
[1751101744942,7.14044775,107390.0,107380.0,0.0186458]
[1751101746708,7.14044775,107390.0,107380.0,0.0028458]
[1751101746916,7.16837284,107390.0,107380.0,0.0028458]
[1751101747132,7.26113292,107390.0,107380.0,0.0028458]
[1751101755370,7.41113292,107390.0,107380.0,0.0028458]
[1751101755579,7.4396761,107390.0,107380.0,0.0028458]
[1751101758150,7.41113292,107390.0,107380.0,0.0028458]
[1751101758917,1.86113292,107390.0,107380.0,0.0028458]
[1751101759110,7.41113292,107390.0,107380.0,0.0028458]
[1751101760398,7.31837284,107390.0,107380.0,0.0028458]
[1751101760604,7.31853284,107390.0,107380.0,0.0345458]
[1751101763768,6.30702656,107390.0,107380.0,0.0345458]
[1751101763986,1.36518091,107390.0,107380.0,0.0345458]
[1751101764161,1.52565582,107390.0,107380.0,0.0345458]
[1751101764379,1.54019667,107390.0,107380.0,0.0345458]
[1751101764694,1.60019667,107390.0,107380.0,0.0345458]
[1751101767570,1.58565582,107390.0,107380.0,0.0345458]
[1751101768397,1.08570268,107390.0,107380.0,0.0345458]
[1751101768605,1.27414268,107390.0,107380.0,0.0345458]
[1751101773555,1.25189492,107390.0,107380.0,0.0345458]
[1751101773757,1.24536539,107390.0,107380.0,0.0345458]
[1751101774786,0.93381225,107390.0,107380.0,0.0345458]
[1751101774986,1.2366737,107390.0,107380.0,0.0345458]
[1751101776286,0.92512056,107390.0,107380.0,0.0345458]
[1751101776510,1.21927497,107390.0,107380.0,0.0345458]
[1751101790495,1.2366683,107390.0,107380.0,0.0345458]
[1751101790695,1.23667253,107390.0,107380.0,0.0345458]
[1751101791293,1.26764472,107390.0,107380.0,0.0345458]
[1751101798504,1.27417447,107390.0,107380.0,0.0345458]
[1751101801551,1.27417447,107390.0,107380.0,0.0194458]
[1751101801765,1.27417447,107390.0,107380.0,0.0028458]
[1751101803506,1.08573447,107390.0,107380.0,0.0191458]
[1751101803711,1.27401447,107390.0,107380.0,0.0341458]
[1751101804125,1.12401447,107390.0,107380.0,0.0341458]
[1751101804340,1.27405447,107390.0,107380.0,0.0341458]
[1751101804902,1.08573447,107390.0,107380.0,0.0341458]
[1751101805113,1.27401447,107390.0,107380.0,0.0341458]
[1751101806443,1.27401712,107390.0,107380.0,0.0341458]
[1751101809539,1.27401712,107390.0,107380.0,0.0191458]
[1751101810904,1.27401712,107390.0,107380.0,0.0028458]
[1751101811116,0.96246398,107390.0,107380.0,0.0028458]
[1751101811321,1.27401712,107390.0,107380.0,0.0028458]
[1751101821042,1.27403937,107390.0,107380.0,0.0028458]
[1751101821219,1.25661956,107390.0,107380.0,0.0028458]
[1751101821786,1.28671956,107390.0,107380.0,0.0028458]
[1751101822615,1.27171956,107390.0,107380.0,0.0028458]
[1751101826203,1.28731956,107390.0,107380.0,0.0028458]
[1751101827186,1.27171956,107390.0,107380.0,0.0028458]
[1751101829924,0.96016642,107390.0,107380.0,0.0028458]
[1751101830128,1.27171956,107390.0,107380.0,0.0028458]
[1751101830671,0.96016642,107390.0,107380.0,0.0028458]
[1751101830883,1.27171956,107390.0,107380.0,0.0028458]
[1751101833024,1.25661956,107390.0,107380.0,0.0028458]
[1751101838110,1.24791957,107390.0,107380.0,0.0028458]
[1751101838312,1.25662949,107390.0,107380.0,0.0028458]
[1751101841734,1.25662954,107390.0,107380.0,0.0028458]
[1751101851163,1.25009701,107390.0,107380.0,0.0028458]
[1751101851365,1.25662939,107390.0,107380.0,0.0028458]
[1751101865721,1.24791955,107390.0,107380.0,0.0028458]
[1751101867400,0.93636641,107390.0,107380.0,0.0028458]
[1751101867603,1.24791955,107390.0,107380.0,0.0028458]
[1751101868866,1.24138717,107390.0,107380.0,0.0028458]
[1751101870574,0.92983403,107390.0,107380.0,0.0028458]
[1751101870768,1.24138717,107390.0,107380.0,0.0028458]
[1751101872080,0.92983403,107390.0,107380.0,0.0028458]
[1751101872283,1.24138717,107390.0,107380.0,0.0028458]
[1751101876965,1.25662936,107390.0,107380.0,0.0028458]
[1751101881032,1.22865636,107390.0,107380.0,0.0028458]
[1751101881247,1.21994655,107390.0,107380.0,0.0028458]
[1751101881446,1.22865706,107390.0,107380.0,0.0028458]
[1751101912235,1.22865912,107390.0,107380.0,0.0028458]
[1751101917419,0.91710598,107390.0,107380.0,0.0028458]
[1751101917614,1.22865912,107390.0,107380.0,0.0028458]
[1751101920375,1.22865957,107390.0,107380.0,0.0028458]
[1751101931458,0.91710643,107390.0,107380.0,0.0028458]
[1751101931714,1.22865957,107390.0,107380.0,0.0028458]
[1751101934986,1.24435957,107390.0,107380.0,0.0028458]
[1751101952577,0.93280643,107390.0,107380.0,0.0028458]
[1751101952777,1.24435957,107390.0,107380.0,0.0028458]
[1751101964604,1.22911417,107390.0,107380.0,0.0028458]
[1751101964923,1.24436725,107390.0,107380.0,0.0028458]
[1751101965858,1.2356512,107390.0,107380.0,0.0028458]
[1751101966058,1.23783022,107390.0,107380.0,0.0028458]
[1751101966272,1.24436725,107390.0,107380.0,0.0028458]
[1751101966485,1.2356512,107390.0,107380.0,0.0028458]
[1751101967264,1.22911417,107390.0,107380.0,0.0028458]
[1751101967536,1.23783021,107390.0,107380.0,0.0028458]
[1751101967953,1.22911417,107390.0,107380.0,0.0028458]
[1751101969634,1.24436726,107390.0,107380.0,0.0028458]
[1751101970055,1.23783022,107390.0,107380.0,0.0028458]
[1751101970258,1.24436725,107390.0,107380.0,0.0028458]
[1751101986201,1.23783022,107390.0,107380.0,0.0028458]
[1751101986404,1.24436685,107390.0,107380.0,0.0028458]
[1751101991750,1.22911417,107390.0,107380.0,0.0028458]
[1751101991994,1.23565061,107390.0,107380.0,0.0028458]
[1751101992856,1.22911417,107390.0,107380.0,0.0028458]
[1751101993259,1.23782943,107390.0,107380.0,0.0028458]
[1751102001749,1.24436576,107390.0,107380.0,0.0028458]
[1751102002386,1.27233276,107390.0,107380.0,0.0028458]
[1751102002581,0.96077962,107390.0,107380.0,0.0028458]
[1751102002747,1.27233276,107390.0,107380.0,0.0028458]
[1751102005843,0.96077962,107390.0,107380.0,0.0028458]
[1751102006048,1.27233276,107390.0,107380.0,0.0028458]
[1751102019614,1.26579643,107390.0,107380.0,0.0028458]
[1751102019820,1.25708117,107390.0,107380.0,0.0028458]
[1751102031300,1.2657968,107390.0,107380.0,0.0028458]
[1751102031715,1.26579679,107390.0,107380.0,0.0028458]
[1751102031933,1.26361788,107390.0,107380.0,0.0028458]
[1751102032616,1.2723335,107390.0,107380.0,0.0028458]
[1751102032815,1.25708117,107390.0,107380.0,0.0028458]
[1751102033069,1.2723335,107390.0,107380.0,0.0028458]
[1751102034100,1.26361788,107390.0,107380.0,0.0028458]
[1751102034301,1.25708117,107390.0,107380.0,0.0028458]
[1751102034499,1.2723335,107390.0,107380.0,0.0028458]
[1751102034729,1.26361788,107390.0,107380.0,0.0028458]
[1751102034951,1.2723335,107390.0,107380.0,0.0028458]
[1751102035121,1.26361788,107390.0,107380.0,0.0028458]
[1751102035463,1.2723335,107390.0,107380.0,0.0028458]
[1751102041141,1.0840535,107390.0,107380.0,0.0028458]
[1751102041335,1.2717335,107390.0,107380.0,0.0028458]
[1751102062960,1.2437665,107390.0,107380.0,0.0028458]
[1751102063596,0.93221336,107390.0,107380.0,0.0028458]
[1751102063805,1.2437665,107390.0,107380.0,0.0028458]
[1751102065069,1.2594665,107390.0,107380.0,0.0028458]
[1751102068735,1.2437665,107390.0,107380.0,0.0028458]
[1751102075173,0.93221336,107390.0,107380.0,0.0028458]
[1751102075368,1.2437665,107390.0,107380.0,0.0028458]
[1751102077921,0.53556696,107380.0,107370.0,0.0321]
[1751102078035,0.9967601,107380.0,107370.0,0.03214586]
[1751102082493,0.9967601,107380.0,107370.0,0.03314586]
[1751102083138,1.5095177,107380.0,107370.0,0.03314586]
[1751102086557,1.5095177,107380.0,107370.0,0.01734586]
[1751102097540,1.5095177,107380.0,107370.0,0.00144586]
[1751102107200,1.6095177,107380.0,107370.0,0.00144586]
[1751102117603,1.29796456,107380.0,107370.0,0.00144586]
[1751102117940,1.6095177,107380.0,107370.0,0.00144586]
[1751102120619,1.6095177,107380.0,107370.0,0.00144586]
[1751102134194,1.29796456,107380.0,107370.0,0.00144586]
[1751102134410,1.6095177,107380.0,107370.0,0.00144586]
[1751102135120,1.92107084,107380.0,107370.0,0.00144586]
[1751102136723,1.6095177,107380.0,107370.0,0.00144586]
[1751102137807,1.6258177,107380.0,107370.0,0.00144586]
[1751102138431,1.6095177,107380.0,107370.0,0.00144586]
[1751102144416,1.6245177,107380.0,107370.0,0.00144586]
[1751102163234,1.31296456,107380.0,107370.0,0.00144586]
[1751102163438,1.6245177,107380.0,107370.0,0.00144586]
[1751102167222,1.6095177,107380.0,107370.0,0.00144586]
[1751102167875,1.4598777,107380.0,107370.0,0.00144586]
[1751102168080,1.6094377,107380.0,107370.0,0.00144586]
[1751102174901,2.04495092,107380.0,107370.0,0.00144586]
[1751102185407,2.07292092,107380.0,107370.0,0.00144586]
[1751102194910,2.11088092,107380.0,107370.0,0.00144586]
[1751102229646,1.48777464,107380.0,107370.0,0.00144586]
[1751102229830,2.11088092,107380.0,107370.0,0.00144586]
[1751102232098,2.24049732,107380.0,107370.0,0.00144586]
[1751102232305,2.14773724,107380.0,107370.0,0.00144586]
[1751102232547,2.02542177,107380.0,107370.0,0.00144586]
[1751102232990,2.0477367,107380.0,107370.0,0.00144586]
[1751102247136,2.06516919,107380.0,107370.0,0.00144586]
[1751102247571,1.44206291,107380.0,107370.0,0.00144586]
[1751102247775,2.06516919,107380.0,107370.0,0.00144586]
[1751102254118,2.07388668,107380.0,107370.0,0.00144586]
[1751102254553,2.07388895,107380.0,107370.0,0.00144586]
[1751102254808,2.05778895,107380.0,107370.0,0.00144586]
[1751102260314,2.04268895,107380.0,107370.0,0.00144586]
[1751102262052,2.04324895,107380.0,107370.0,0.00144586]
[1751102270845,2.05904895,107380.0,107370.0,0.00144586]
[1751102278153,2.0590485,107380.0,107370.0,0.00144586]
[1751102278358,2.05904859,107380.0,107370.0,0.00144586]
[1751102279202,2.0655864,107380.0,107370.0,0.00144586]
[1751102280412,2.06558649,107380.0,107370.0,0.00144586]
[1751102281825,2.06558645,107380.0,107370.0,0.00144586]
[1751102283788,2.08168645,107380.0,107370.0,0.00144586]
[1751102285571,2.08168428,107380.0,107370.0,0.00144586]
[1751102286401,2.08168372,107380.0,107370.0,0.00144586]
[1751102286614,2.0816834,107380.0,107370.0,0.00144586]
[1751102287414,2.08168332,107380.0,107370.0,0.00144586]
[1751102288039,2.08168312,107380.0,107370.0,0.00144586]
[1751102288412,2.06425041,107380.0,107370.0,0.00144586]
[1751102289786,1.44114413,107380.0,107370.0,0.00144586]
[1751102289955,2.06425041,107380.0,107370.0,0.00144586]
[1751102296309,2.06455041,107380.0,107370.0,0.00144586]
[1751102300355,1.44144413,107380.0,107370.0,0.00144586]
[1751102300584,2.06455041,107380.0,107370.0,0.00144586]
[1751102303269,2.04815041,107380.0,107370.0,0.00144586]
[1751102309048,2.06355041,107380.0,107370.0,0.00144586]
[1751102319548,2.08098583,107380.0,107370.0,0.00144586]
[1751102320323,2.08098686,107380.0,107370.0,0.00144586]
[1751102325570,2.06558686,107380.0,107370.0,0.00144586]
[1751102326007,2.06558704,107380.0,107370.0,0.00144586]
[1751102328569,2.04815162,107380.0,107370.0,0.00144586]
[1751102332534,2.03235162,107380.0,107370.0,0.00144586]
[1751102335004,2.04825162,107380.0,107370.0,0.00144586]
[1751102336189,1.86017162,107380.0,107370.0,0.00144586]
[1751102336395,2.04801162,107380.0,107370.0,0.00144586]
[1751102336816,2.04801077,107380.0,107370.0,0.00144586]
[1751102349087,2.06544373,107380.0,107370.0,0.00144586]
[1751102352414,2.08154373,107380.0,107370.0,0.00144586]
[1751102356669,2.06544373,107380.0,107370.0,0.00144586]
[1751102357078,1.44233745,107380.0,107370.0,0.00144586]
[1751102357426,2.06544373,107380.0,107370.0,0.00144586]
[1751102361302,2.04954373,107380.0,107370.0,0.00144586]
[1751102368406,2.04938373,107380.0,107370.0,0.00144586]
[1751102375193,2.03195077,107380.0,107370.0,0.00144586]
[1751102375412,2.04938695,107380.0,107370.0,0.00144586]
[1751102379300,2.03195077,107380.0,107370.0,0.00144586]
[1751102385783,2.03191077,107380.0,107370.0,0.00144586]
[1751102386955,1.40880449,107380.0,107370.0,0.00144586]
[1751102387171,2.03191077,107380.0,107370.0,0.00144586]
[1751102388422,1.84427077,107380.0,107370.0,0.00144586]
[1751102388630,2.03191077,107380.0,107370.0,0.00144586]
[1751102407200,1.84427077,107380.0,107370.0,0.00144586]
[1751102407404,1.31303957,107380.0,107370.0,0.343899]
[1751102407587,1.60227778,107380.0,107370.0,0.03234586]
[1751102409106,1.45263778,107380.0,107370.0,0.03234586]
[1751102409303,1.29072464,107380.0,107370.0,0.03234586]
[1751102409525,1.60227778,107380.0,107370.0,0.03234586]
[1751102416091,1.29072464,107380.0,107370.0,0.03234586]
[1751102416321,1.60227778,107380.0,107370.0,0.03234586]
[1751102416541,1.91383092,107380.0,107370.0,0.03234586]
[1751102416763,1.60227778,107380.0,107370.0,0.03234586]
[1751102438382,1.91383092,107380.0,107370.0,0.03234586]
[1751102438749,1.91383092,107380.0,107370.0,0.01734586]
[1751102438910,1.91383092,107380.0,107370.0,0.00144586]
[1751102439334,1.60227778,107380.0,107370.0,0.00144586]
[1751102443413,1.60227778,107380.0,107370.0,0.01674586]
[1751102450286,1.60227778,107380.0,107370.0,0.00144586]
[1751102454379,1.91383092,107380.0,107370.0,0.00144586]
[1751102455008,0.53558518,107370.0,107360.0,0.03507447]
[1751102455217,0.99681832,107370.0,107360.0,0.03507447]
[1751102455873,0.68526518,107370.0,107360.0,0.03507447]
[1751102458249,0.68526518,107370.0,107360.0,0.03607447]
[1751102459785,0.68526518,107370.0,107360.0,0.03574586]
[1751102462522,0.74526518,107370.0,107360.0,0.03574586]
[1751102464787,0.74526518,107370.0,107360.0,0.347299]
[1751102469125,0.74526518,107370.0,107360.0,0.03574586]
[1751102471953,0.74526518,107370.0,107360.0,0.347299]
[1751102482873,0.74526518,107370.0,107360.0,0.331899]
[1751102484617,0.74526518,107370.0,107360.0,0.02034586]
[1751102486176,0.74526518,107370.0,107360.0,0.00524586]
[1751102491701,0.74526518,107370.0,107360.0,0.00757447]
[1751102491905,0.74526518,107370.0,107360.0,0.00524586]
[1751102495083,0.74526518,107370.0,107360.0,0.316799]
[1751102501234,0.74526518,107370.0,107360.0,0.00524586]
[1751102512101,0.74526518,107370.0,107360.0,0.316799]
[1751102512464,0.74526518,107370.0,107360.0,0.00524586]
[1751102514748,0.74526518,107370.0,107360.0,0.00757447]
[1751102515450,0.74526518,107370.0,107360.0,0.00524586]
[1751102541519,0.59558518,107370.0,107360.0,0.00524586]
[1751102541762,0.74518518,107370.0,107360.0,0.00524586]
[1751102566542,1.05673832,107370.0,107360.0,0.00524586]
[1751102570110,0.74518518,107370.0,107360.0,0.00524586]
[1751102571253,0.74518518,107370.0,107360.0,0.00524586]
[1751102585906,0.59558518,107370.0,107360.0,0.50308812]
[1751102586084,0.74518518,107370.0,107360.0,0.50308812]
[1751102589641,0.74518518,107370.0,107360.0,0.51240257]
[1751102590271,0.74518518,107370.0,107360.0,0.50308812]
[1751102594121,0.74518518,107370.0,107360.0,0.316799]
[1751102594340,0.74518518,107370.0,107360.0,0.51240257]
[1751102594537,0.73587177,107370.0,107360.0,0.50308812]
[1751102595632,0.73587177,107370.0,107360.0,0.51240257]
[1751102595835,0.73587177,107370.0,107360.0,0.316799]
[1751102596697,0.73587177,107370.0,107360.0,0.51240257]
[1751102597487,0.73587177,107370.0,107360.0,0.52171693]
[1751102597693,0.74514518,107370.0,107360.0,0.52171693]
[1751102597909,0.75445833,107370.0,107360.0,0.52171693]
[1751102598121,0.06931289,107370.0,107360.0,0.8936122]
[1751102598329,0.06,107370.0,107360.0,1.13593228]
[1751102598689,0.06,107370.0,107360.0,1.17393228]
[1751102599313,0.06,107370.0,107360.0,1.17293228]
[1751102599542,0.06931289,107370.0,107360.0,1.17193228]
[1751102599712,0.0693128,107370.0,107360.0,1.17193228]
[1751102600070,0.0693128,107370.0,107360.0,1.17393228]
[1751102600450,0.06,107370.0,107360.0,1.17393228]
[1751102602025,0.07862595,107370.0,107360.0,1.17393228]
[1751102602222,0.06931289,107370.0,107360.0,1.17393228]
[1751102602668,0.07862595,107370.0,107360.0,1.17393228]